bitfinex/quotes_SOLUSD_20241209
["timestamp","ask_amount","ask_price","bid_price","bid_amount"]
[1733704963989,5.0,233.66,233.65,13.17968618]
[1733704965097,5.0,233.66,233.64,13.17968618]
[1733704965999,5.0,233.66,233.65,13.17968618]
[1733704967908,5.0,233.66,233.64,13.17968618]
[1733704968209,5.0,233.66,233.65,13.17968618]
[1733704970083,5.0,233.66,233.65,12.78626814]
[1733704972717,5.0,233.68,233.65,23.48556814]
[1733704973011,5.0,233.68,233.67,13.17968618]
[1733704973448,5.0,233.68,233.66,13.17968618]
[1733704974685,5.0,233.68,233.66,23.17968618]
[1733704975988,5.0,233.68,233.66,10.0]
[1733704977699,5.80248589,233.68,233.66,10.0]
[1733704978422,5.0,233.68,233.66,10.0]
[1733704978727,5.0,233.68,233.66,23.17968618]
[1733704978895,5.0,233.68,233.67,13.17968618]
[1733704980693,5.0,233.68,233.66,10.0]
[1733704980919,0.80242256,233.67,233.66,10.0]
[1733704981123,13.98215478,233.67,233.66,10.0]
[1733704983525,18.98215478,233.67,233.66,10.0]
[1733704989100,13.98215478,233.67,233.66,10.0]
[1733704990229,18.98225404,233.68,233.66,10.0]
[1733704990529,5.0,233.68,233.66,10.0]
[1733704991015,0.80244382,233.67,233.66,10.0]
[1733704991220,13.98213,233.67,233.66,10.0]
[1733704991715,18.17968618,233.68,233.66,10.0]
[1733704991918,5.0,233.68,233.66,10.0]
[1733704994954,13.98208508,233.67,233.66,10.0]
[1733704996533,18.98208508,233.67,233.66,10.0]
[1733704996917,13.98208508,233.67,233.66,10.0]
[1733704997620,18.98208508,233.67,233.66,10.0]
[1733704999650,13.98208508,233.67,233.66,10.0]
[1733705000258,18.17968618,233.68,233.66,10.0]
[1733705000439,0.80253705,233.67,233.66,10.0]
[1733705002030,13.98222323,233.67,233.66,10.0]
[1733705004739,0.80253705,233.67,233.66,10.0]
[1733705004931,5.0,233.68,233.66,10.0]
[1733705005334,5.0,233.68,233.67,13.17968618]
[1733705005740,5.0,233.71,233.67,13.17968618]
[1733705005961,5.0,233.68,233.66,11.5614]
[1733705006447,5.0,233.68,233.66,24.74108618]
[1733705006658,5.0,233.68,233.66,10.0]
[1733705006956,0.8024451,233.67,233.66,10.0]
[1733705008336,23.98213128,233.67,233.66,10.0]
[1733705008943,25.05193128,233.67,233.66,10.0]
[1733705011068,10.8024451,233.67,233.66,10.0]
[1733705011605,0.8024451,233.67,233.66,10.0]
[1733705014665,18.98213128,233.67,233.66,10.0]
[1733705015443,20.49273128,233.67,233.66,10.0]
[1733705018749,20.49273128,233.67,233.66,9.5]
[1733705019128,20.49273128,233.67,233.66,0.0001]
[1733705021259,10.0,233.53,233.52,4.80070231]
[1733705021457,5.0,233.44,233.41,0.4866604]
[1733705021781,38.9831083,233.44,233.41,0.4866604]
[1733705022145,35.80342212,233.44,233.41,0.4866604]
[1733705022343,35.80342212,233.44,233.43,12.95831077]
[1733705022344,25.80342212,233.44,233.43,12.95831077]
[1733705023195,179.38902212,233.44,233.43,4.46515381]
[1733705023373,5.0,233.42,233.41,0.4866604]
[1733705023572,38.98325836,233.42,233.41,0.4866604]
[1733705024777,43.98325836,233.42,233.41,0.4866604]
[1733705025568,48.98325836,233.42,233.41,0.4866604]
[1733705025793,43.98325836,233.42,233.41,0.4866604]
[1733705025969,38.98325836,233.42,233.41,0.4866604]
[1733705026371,25.80357218,233.42,233.41,0.4866604]
[1733705026791,5.80357218,233.42,233.41,0.4866604]
[1733705026992,18.98325836,233.42,233.41,0.4866604]
[1733705028299,5.80357218,233.42,233.41,0.4866604]
[1733705029492,5.0,233.42,233.41,0.4866604]
[1733705029699,5.0,233.42,233.41,13.66634658]
[1733705029873,5.0,233.42,233.41,0.4866604]
[1733705032300,5.0,233.42,233.41,13.66634658]
[1733705034412,5.0,233.42,233.41,0.4866604]
[1733705034703,5.0,233.42,233.41,13.66634658]
[1733705035301,13.17968618,233.5,233.41,13.66634658]
[1733705035302,5.0,233.44,233.41,13.66634658]
[1733705035478,5.0,233.44,233.43,13.17968618]
[1733705035682,5.0,233.46,233.43,13.17968618]
[1733705035878,5.0,233.44,233.43,13.17968618]
[1733705036400,5.0,233.43,233.42,13.17968618]
[1733705036803,5.0,233.43,233.42,14.71738618]
[1733705037283,5.0,233.45,233.42,14.71738618]
[1733705037487,5.0,233.43,233.42,1.5377]
[1733705037692,5.0,233.45,233.42,14.71738618]
[1733705037899,5.0,233.45,233.44,13.17968618]
[1733705038100,5.0,233.47,233.44,13.17968618]
[1733705038335,5.0,233.5,233.46,13.17968618]
[1733705038508,5.0,233.5,233.43,10.7098]
[1733705038826,5.0,233.52,233.49,13.17968618]
[1733705039116,5.0,233.52,233.51,13.17968618]
[1733705039818,5.0,233.52,233.46,10.7082]
[1733705040000,5.0,233.52,233.51,13.17968618]
[1733705041230,5.0,233.54,233.51,13.17968618]
[1733705041393,5.0,233.54,233.46,10.7082]
[1733705041394,5.0,233.54,233.53,13.17968618]
[1733705041991,5.0,233.56,233.53,14.81058618]
[1733705042217,5.0,233.6,233.55,13.17968618]
[1733705042426,5.0,233.6,233.59,13.17968618]
[1733705042722,5.0,233.64,233.59,13.17968618]
[1733705042929,5.0,233.64,233.63,13.17968618]
[1733705043294,5.0,233.67,233.63,14.70488618]
[1733705043633,5.0,233.67,233.66,13.17968618]
[1733705043791,5.0,233.64,233.63,14.70488618]
[1733705043992,13.17968618,233.69,233.63,14.70488618]
[1733705043993,5.0,233.68,233.63,14.70488618]
[1733705044191,5.0,233.68,233.67,13.17968618]
[1733705044393,5.0,233.71,233.67,13.17968618]
[1733705044605,5.0,233.68,233.63,1.5252]
[1733705044890,0.80234178,233.75,233.63,1.5252]
[1733705044891,5.0,233.66,233.63,1.5252]
[1733705045089,5.0,233.66,233.65,13.17968618]
[1733705047415,5.0,233.66,233.63,1.5252]
[1733705047416,5.0,233.66,233.64,13.17968618]
[1733705048615,5.0,233.64,233.62,13.17968618]
[1733705048813,5.0,233.62,233.6,13.17968618]
[1733705049016,5.0,233.6,233.58,13.17968618]
[1733705049223,5.0,233.6,233.59,13.17968618]
[1733705051714,0.80263943,233.66,233.59,13.17968618]
[1733705051715,5.0,233.62,233.59,13.17968618]
[1733705051921,5.0,233.62,233.61,13.17968618]
[1733705052102,5.0,233.64,233.61,13.17968618]
[1733705052302,5.0,233.64,233.57,1.5491]
[1733705052303,5.0,233.64,233.63,13.17968618]
[1733705052829,6.1368,233.73,233.63,26.35937236]
[1733705052830,5.0,233.67,233.63,26.35937236]
[1733705053039,5.0,233.67,233.66,13.17968618]
[1733705054039,5.0,233.69,233.66,13.17968618]
[1733705054248,5.0,233.69,233.68,13.17968618]
[1733705055542,5.0,233.77,233.69,1.51]
[1733705055713,5.0,233.77,233.76,13.17968618]
[1733705058714,5.0,233.77,233.75,13.17968618]
[1733705059245,5.0,233.77,233.76,13.17968618]
[1733705059414,13.17968618,233.83,233.76,13.17968618]
[1733705059415,5.0,233.79,233.76,13.17968618]
[1733705059739,5.0,233.79,233.78,13.17968618]
[1733705061117,5.0,233.81,233.78,13.17968618]
[1733705061320,5.0,233.83,233.8,13.17968618]
[1733705061524,5.0,233.83,233.82,13.17968618]
[1733705062747,5.0,233.86,233.82,13.17968618]
[1733705062944,5.0,233.88,233.85,13.17968618]
[1733705063145,5.0,233.88,233.87,13.17968618]
[1733705063446,0.80172025,233.96,233.87,13.17968618]
[1733705063447,5.0,233.91,233.87,26.35937236]
[1733705063647,5.0,233.91,233.9,13.17968618]
[1733705064026,0.80172025,233.96,233.8,1.6313]
[1733705064027,5.0,233.89,233.88,13.17968618]
[1733705065240,5.0,233.91,233.88,26.35937236]
[1733705065414,5.0,233.91,233.9,13.17968618]
[1733705065612,5.0,233.93,233.9,13.17968618]
[1733705065814,5.0,233.93,233.92,13.17968618]
[1733705066015,5.0,233.99,233.92,13.17968618]
[1733705066349,5.0,233.99,233.98,13.17968618]
[1733705066857,5.0,233.96,233.95,13.17968618]
[1733705067151,5.0,233.96,233.91,1.6053]
[1733705067325,5.0,233.96,233.91,12.2928]
[1733705068137,5.0,233.96,233.95,13.17968618]
[1733705070765,5.0,233.94,233.93,13.17968618]
[1733705073835,5.0,233.98,233.93,13.17968618]
[1733705074147,5.0,233.98,233.97,13.17968618]
[1733705075062,5.0,233.98,233.95,13.17968618]
[1733705075244,5.0,233.96,233.95,13.17968618]
[1733705075854,5.0,233.97,233.95,13.17968618]
[1733705076155,0.80135479,234.08,233.91,15.68734904]
[1733705076156,5.0,234.02,233.96,13.17968618]
[1733705076362,5.0,234.0,233.91,15.68734904]
[1733705076563,5.0,234.0,233.94,20.0]
[1733705076760,5.0,234.0,233.99,13.17968618]
[1733705078668,5.0,234.03,233.99,13.17968618]
[1733705078860,5.0,234.03,234.02,13.17968618]
[1733705080076,5.0,234.01,234.0,13.17968618]
[1733705080373,5.0,234.01,233.99,13.17968618]
[1733705080574,5.0,233.99,233.98,13.17968618]
[1733705080787,5.0,233.97,233.94,13.17968618]
[1733705081077,5.0,233.95,233.94,13.17968618]
[1733705081485,5.0,233.93,233.92,13.17968618]
[1733705081641,5.0,233.93,233.91,13.17968618]
[1733705082251,5.0,233.93,233.92,13.17968618]
[1733705083888,5.0,233.93,233.91,13.17968618]
[1733705084559,5.0,233.93,233.92,13.17968618]
[1733705085859,5.0,233.9,233.83,10.6912]
[1733705086067,5.0,233.9,233.89,13.17968618]
[1733705086485,5.0,233.9,233.88,13.17968618]
[1733705086866,5.0,233.9,233.89,13.17968618]
[1733705087759,5.0,233.9,233.87,13.17968618]
[1733705087958,5.0,233.88,233.87,13.17968618]
[1733705088981,5.0,233.9,233.87,13.17968618]
[1733705089187,5.0,233.93,233.89,13.17968618]
[1733705089403,5.0,233.93,233.92,13.17968618]
[1733705090993,5.0,233.94,233.92,13.17968618]
[1733705091191,5.0,233.94,233.93,13.17968618]
[1733705091397,5.0,233.97,233.93,13.17968618]
[1733705091588,5.0,233.97,233.96,13.17968618]
[1733705092771,5.0,233.95,233.94,13.17968618]
[1733705094495,5.0,233.97,233.94,13.17968618]
[1733705094700,5.0,233.97,233.96,13.17968618]
[1733705094873,5.0,234.01,233.96,13.17968618]
[1733705095199,5.0,234.03,234.0,13.17968618]
[1733705095409,5.0,234.07,234.02,13.17968618]
[1733705095575,5.0,234.09,234.0,13.17968618]
[1733705095772,5.0,234.09,234.01,1.5815]
[1733705095969,5.0,234.09,234.08,13.17968618]
[1733705096208,5.0,234.11,234.08,13.17968618]
[1733705096511,0.80090125,234.17,234.01,12.90454904]
[1733705096512,5.0,234.09,234.02,10.6828]
[1733705096694,5.0,234.09,234.08,13.17968618]
[1733705098897,5.0,234.09,234.06,13.17968618]
[1733705099104,5.0,234.07,234.05,13.17968618]
[1733705099975,5.0,234.07,234.06,13.17968618]
[1733705100209,5.0,234.07,234.04,13.17968618]
[1733705100509,5.0,234.03,234.02,13.17968618]
[1733705100677,5.0,234.03,234.0,13.17968618]
[1733705100878,5.0,234.01,234.0,13.17968618]
[1733705101601,5.0,233.94,233.88,13.17968618]
[1733705102111,5.0,233.92,233.88,13.17968618]
[1733705102817,5.0,233.92,233.91,13.17968618]
[1733705102979,5.0,233.92,233.9,13.17968618]
[1733705103182,5.0,233.92,233.91,13.17968618]
[1733705103379,5.0,233.92,233.9,13.17968618]
[1733705103592,5.0,233.94,233.91,13.17968618]
[1733705103791,5.0,233.96,233.93,13.17968618]
[1733705103996,16.93978618,234.12,233.95,13.17968618]
[1733705103997,5.0,234.0,233.95,13.17968618]
[1733705104311,5.0,233.97,233.91,20.0]
[1733705104517,5.0,233.97,233.96,13.17968618]
[1733705105205,5.0,233.97,233.96,21.05094463]
[1733705105418,5.0,234.01,233.96,21.05094463]
[1733705105713,5.0,234.01,234.0,42.10188926]
[1733705105918,5.0,234.05,234.0,42.10188926]
[1733705106119,6.4396,234.15,234.0,42.10188926]
[1733705106120,5.0,234.07,234.04,21.05094463]
[1733705106417,5.0,234.07,234.06,21.05094463]
[1733705107293,5.0,234.07,234.05,21.05094463]
[1733705107785,5.0,234.05,234.04,21.05094463]
[1733705108403,5.0,234.03,234.02,21.05094463]
[1733705108910,5.0,234.03,233.94,12.254]
[1733705108911,5.0,234.0,233.99,21.05094463]
[1733705109695,5.0,234.04,233.99,21.05094463]
[1733705109989,5.0,234.04,233.96,15.68524904]
[1733705109990,5.0,234.06,234.03,21.05094463]
[1733705110197,5.0,234.06,234.05,21.05094463]
[1733705110393,5.0,234.06,234.04,21.05094463]
[1733705110997,5.0,234.06,234.05,21.05094463]
[1733705112114,5.0,234.07,234.05,21.05094463]
[1733705112311,5.0,234.07,234.06,21.05094463]
[1733705113088,5.0,234.07,234.05,21.05094463]
[1733705113293,5.0,234.05,233.96,4.99994904]
[1733705113619,5.0,234.05,234.04,21.05094463]
[1733705114221,5.0,234.09,234.04,21.05094463]
[1733705114520,5.0,234.09,234.08,21.05094463]
[1733705115414,5.0,234.07,234.01,10.683]
[1733705115618,5.0,234.07,234.06,21.05094463]
[1733705116910,21.05094463,234.13,233.97,4.99994904]
[1733705116911,5.0,234.05,234.04,21.05094463]
[1733705117802,5.0,234.02,234.0,21.05094463]
[1733705117993,5.0,234.02,233.94,1.5679]
[1733705117994,5.0,234.0,233.94,1.5679]
[1733705118399,0.80120444,234.06,233.94,1.5679]
[1733705118400,5.0,233.98,233.94,1.5679]
[1733705118597,5.0,233.98,233.97,21.05094463]
[1733705119692,5.0,234.0,233.97,21.05094463]
[1733705119898,5.0,234.0,233.99,21.05094463]
[1733705120097,5.0,234.02,233.99,21.05094463]
[1733705120395,5.0,234.04,234.01,21.05094463]
[1733705120604,7.5073,234.15,234.03,21.05094463]
[1733705120605,5.0,234.06,234.03,21.05094463]
[1733705120831,5.0,234.08,234.05,21.05094463]
[1733705121023,5.0,234.08,234.07,21.05094463]
[1733705121801,5.0,234.1,234.07,21.05094463]
[1733705122134,5.0,234.1,234.09,21.05094463]
[1733705122699,0.80076684,234.19,234.09,21.05094463]
[1733705122700,5.0,234.12,234.09,21.05094463]
[1733705122896,5.0,234.15,234.11,21.05094463]
[1733705123123,5.0,234.15,234.06,4.99994904]
[1733705123124,5.0,234.15,234.14,21.05094463]
[1733705123700,5.0,234.17,234.14,21.05094463]
[1733705123898,5.0,234.17,234.16,21.05094463]
[1733705124132,0.4866604,234.23,234.16,21.05094463]
[1733705124133,5.0,234.19,234.16,21.05094463]
[1733705124432,5.0,234.21,234.18,21.05094463]
[1733705124645,5.0,234.21,234.2,21.05094463]
[1733705125203,5.4866604,234.23,234.2,21.05094463]
[1733705125404,5.4866604,234.23,234.21,21.05094463]
[1733705125738,5.0,234.21,234.2,21.05094463]
[1733705126809,21.05094463,234.26,234.25,5.0]
[1733705127121,21.05094463,234.28,234.25,9.99994904]
[1733705127331,0.80047825,234.27,234.25,9.99994904]
[1733705127528,21.85142288,234.27,234.23,9.99994904]
[1733705127838,20.0,234.21,234.19,9.99994904]
[1733705128047,1.0669,234.31,234.23,4.99994904]
[1733705128048,21.05094463,234.25,234.23,4.99994904]
[1733705128250,0.8005109,234.31,234.23,9.99994904]
[1733705128459,21.05094463,234.29,234.26,5.0]
[1733705128627,21.05094463,234.27,234.25,4.99994904]
[1733705128824,0.80043693,234.28,234.14,6.4806]
[1733705128825,21.85142891,234.26,234.23,4.99994904]
[1733705129020,0.80056549,234.25,234.24,4.99994904]
[1733705130257,20.0,234.25,234.24,4.99994904]
[1733705132428,0.80049506,234.26,234.24,9.99994904]
[1733705133749,45.628346,234.25,234.21,9.99994904]
[1733705133932,0.80059778,234.24,234.21,9.99994904]
[1733705134327,23.776884,234.25,234.21,9.99994904]
[1733705134550,0.80059651,234.24,234.21,9.99994904]
[1733705134858,23.776884,234.23,234.19,5.0]
[1733705136166,23.776884,234.24,234.21,5.0]
[1733705136336,0.80060446,234.24,234.23,5.0]
[1733705137575,0.80057492,234.25,234.23,5.0]
[1733705137748,0.80058463,234.24,234.23,5.0]
[1733705138650,0.80058261,234.25,234.23,5.0]
[1733705138848,0.80058261,234.25,234.21,5.0]
[1733705139053,23.776884,234.24,234.19,9.99994904]
[1733705139283,0.80065088,234.23,234.21,5.0]
[1733705139559,0.80065088,234.23,234.22,4.99994904]
[1733705139762,0.80065258,234.24,234.22,4.99994904]
[1733705140643,0.80058267,234.25,234.22,4.99994904]
[1733705141042,23.776884,234.28,234.24,9.99994904]
[1733705141271,24.57738551,234.27,234.26,5.0]
[1733705141779,24.57738551,234.27,234.24,5.0]
[1733705141966,24.57738551,234.27,234.24,9.99994904]
[1733705142265,24.57738551,234.27,234.2,9.99994904]
[1733705142266,21.05094463,234.25,234.2,9.99994904]
[1733705142469,0.80067999,234.24,234.23,4.99994904]
[1733705143164,0.80056698,234.26,234.25,5.0]
[1733705144078,23.776884,234.27,234.25,5.0]
[1733705144247,0.80050179,234.26,234.25,9.99994904]
[1733705144448,20.8005007,234.28,234.27,4.99994904]
[1733705144770,21.05094463,234.33,234.29,9.99994904]
[1733705144959,0.80035939,234.32,234.29,9.99994904]
[1733705145161,13.92955797,234.32,234.29,5.0]
[1733705145356,13.12919858,234.31,234.29,5.0]
[1733705145569,0.80041257,234.3,234.29,5.0]
[1733705145954,0.80038101,234.31,234.29,9.99994904]
[1733705146574,0.80032238,234.34,234.32,5.0]
[1733705147086,0.80032238,234.34,234.32,9.99994904]
[1733705147556,0.80023411,234.36,234.32,9.99994904]
[1733705147885,0.80023433,234.41,234.36,4.99994904]
[1733705148244,13.12919858,234.4,234.35,5.0]
[1733705148449,0.80015899,234.39,234.37,4.99994904]
[1733705148679,13.92923221,234.41,234.37,4.99994904]
[1733705148988,13.92923221,234.41,234.35,9.99994904]
[1733705149150,13.92923221,234.41,234.37,4.99994904]
[1733705149486,0.80003363,234.41,234.37,9.99994904]
[1733705149690,1.0659,234.55,234.47,5.0]
[1733705149983,6.6002,234.57,234.5,13.12919858]
[1733705149984,0.79972153,234.54,234.5,13.12919858]
[1733705150278,135.7,234.66,234.51,9.99994904]
[1733705150279,0.79964191,234.53,234.51,9.99994904]
[1733705150481,13.12919858,234.53,234.52,5.0]
[1733705150699,13.12919858,234.55,234.51,4.99994904]
[1733705150872,0.79956278,234.54,234.52,5.0]
[1733705151082,0.79956278,234.54,234.51,4.99994904]
[1733705151294,21.76559828,234.54,234.52,5.0]
[1733705151478,21.76562505,234.53,234.49,9.99994904]
[1733705151681,0.79963348,234.52,234.49,9.99994904]
[1733705151925,0.79964443,234.51,234.49,9.99994904]
[1733705152072,0.79964443,234.51,234.49,8.34164904]
[1733705152491,20.79966001,234.5,234.47,8.34164904]
[1733705152695,20.0,234.5,234.47,8.34164904]
[1733705152976,20.0,234.5,234.48,5.0]
[1733705152977,40.9660355,234.5,234.48,5.0]
[1733705153479,40.9660355,234.5,234.47,3.34164904]
[1733705153690,44.7429195,234.49,234.45,3.34164904]
[1733705153901,0.79977423,234.48,234.45,3.34164904]
[1733705154104,0.79977117,234.47,234.45,3.34164904]
[1733705154478,0.79977117,234.47,234.44,5.0]
[1733705154479,24.57665606,234.46,234.44,5.0]
[1733705154683,24.57675988,234.45,234.44,8.34164904]
[1733705154973,24.57675988,234.45,234.44,5.0]
[1733705155707,21.0661,234.5,234.44,5.0]
[1733705155708,0.79988949,234.47,234.46,3.34164904]
[1733705155874,20.0,234.48,234.46,3.34164904]
[1733705156075,0.79976862,234.5,234.47,5.0]
[1733705156278,23.776884,234.49,234.47,5.0]
[1733705156507,23.776884,234.51,234.48,3.34164904]
[1733705156707,0.79967669,234.52,234.51,5.0]
[1733705157078,0.7996079,234.54,234.51,5.0]
[1733705157275,0.79957841,234.53,234.51,5.0]
[1733705157498,0.79961979,234.52,234.51,5.0]
[1733705158379,20.9660355,234.55,234.51,5.0]
[1733705158380,0.7996168,234.54,234.51,5.0]
[1733705158594,0.79960964,234.53,234.51,5.0]
[1733705158797,0.79960892,234.52,234.51,5.0]
[1733705159302,24.57649292,234.52,234.51,4.3626]
[1733705159909,23.776884,234.52,234.51,4.3626]
[1733705160282,23.776884,234.52,234.5,3.34164904]
[1733705160283,44.7429195,234.53,234.49,4.3626]
[1733705160477,23.776884,234.51,234.49,4.3626]
[1733705160786,23.776884,234.49,234.48,3.34164904]
[1733705161411,0.79968539,234.52,234.51,7.70424904]
[1733705161717,23.776884,234.53,234.51,7.70424904]
[1733705161927,20.9660355,234.57,234.51,7.70424904]
[1733705161928,0.79953965,234.56,234.51,28.67028454]
[1733705162080,0.79946152,234.57,234.55,3.34164904]
[1733705162588,0.79946792,234.59,234.55,3.34164904]
[1733705163078,0.79946792,234.59,234.58,3.34164904]
[1733705163279,20.9660355,234.66,234.61,7.70424904]
[1733705163478,20.9660355,234.64,234.61,7.70424904]
[1733705163677,21.76527181,234.63,234.59,7.70424904]
[1733705163905,21.76527181,234.63,234.51,6.1098]
[1733705163906,20.9660355,234.61,234.57,7.70424904]
[1733705164210,21.76542974,234.6,234.57,7.70424904]
[1733705164412,0.79939424,234.6,234.57,7.70424904]
[1733705164716,21.76542974,234.6,234.57,7.70424904]
[1733705164924,20.9660355,234.58,234.53,7.70424904]
[1733705165208,1.65835096,234.65,234.53,7.70424904]
[1733705165209,20.9660355,234.56,234.53,3.34164904]
[1733705165408,23.776884,234.54,234.53,3.34164904]
[1733705165621,44.7429195,234.54,234.51,4.3626]
[1733705165825,23.776884,234.55,234.51,4.3626]
[1733705165993,23.776884,234.55,234.54,3.34164904]
[1733705166502,23.776884,234.58,234.55,4.3626]
[1733705166691,20.9660355,234.6,234.58,7.16034904]
[1733705167109,20.9660355,234.61,234.58,7.16034904]
[1733705167982,20.9660355,234.64,234.6,7.16034904]
[1733705168188,21.76528524,234.63,234.6,7.16034904]
[1733705168693,20.9660355,234.61,234.58,4.3626]
[1733705168897,20.9660355,234.61,234.58,7.16034904]
[1733705168898,0.79940816,234.6,234.58,7.16034904]
[1733705169371,20.9660355,234.63,234.61,4.3626]
[1733705169526,0.79925541,234.62,234.61,4.3626]
[1733705169889,20.9660355,234.63,234.61,4.3626]
[1733705170308,20.9660355,234.66,234.63,4.3626]
[1733705170484,0.79916905,234.65,234.63,4.3626]
[1733705170829,21.76520455,234.65,234.63,4.3626]
[1733705171390,23.776884,234.64,234.63,4.3626]
[1733705172012,44.7429195,234.64,234.63,4.3626]
[1733705173341,23.776884,234.64,234.63,4.3626]
[1733705174408,23.776884,234.64,234.61,4.3626]
[1733705174745,23.776884,234.62,234.61,4.3626]
[1733705175552,24.5761267,234.62,234.6,2.79774904]
[1733705175737,24.5761267,234.62,234.59,4.3626]
[1733705175738,23.776884,234.6,234.59,4.3626]
[1733705175905,24.57629682,234.6,234.59,4.3626]
[1733705176106,23.776884,234.6,234.59,4.3626]
[1733705176802,23.776884,234.6,234.58,2.79774904]
[1733705177011,0.79930385,234.61,234.58,2.79774904]
[1733705177012,13.89136668,234.61,234.58,2.79774904]
[1733705177334,23.776884,234.6,234.59,4.3626]
[1733705177533,23.776884,234.6,234.58,2.79774904]
[1733705178538,23.776884,234.6,234.59,4.3626]
[1733705178923,23.776884,234.6,234.58,2.79774904]
[1733705179141,0.79930731,234.59,234.57,4.3626]
[1733705179304,24.57619131,234.59,234.58,2.79774904]
[1733705179510,23.776884,234.59,234.58,2.79774904]
[1733705180048,13.09201736,234.66,234.63,4.3626]
[1733705180210,0.79918419,234.65,234.63,7.16034904]
[1733705181426,23.776884,234.64,234.63,7.16034904]
[1733705181932,36.86890136,234.64,234.63,7.16034904]
[1733705182334,36.86890136,234.64,234.57,13.09201736]
[1733705182335,36.86890136,234.64,234.61,7.16034904]
[1733705182531,23.776884,234.62,234.61,7.16034904]
[1733705182725,23.776884,234.62,234.59,7.16034904]
[1733705182926,36.86890136,234.6,234.57,7.16034904]
[1733705183130,23.776884,234.58,234.57,7.16034904]
[1733705184319,23.776884,234.58,234.54,2.79774904]
[1733705184320,36.86890136,234.58,234.54,2.79774904]
[1733705184641,23.776884,234.56,234.54,7.16034904]
[1733705184843,23.776884,234.57,234.54,7.16034904]
[1733705185158,23.776884,234.57,234.56,7.16034904]
[1733705185956,0.79937882,234.65,234.62,2.79774904]
[1733705186154,0.79920263,234.67,234.62,2.79774904]
[1733705186324,13.09201736,234.66,234.62,2.79774904]
[1733705186519,0.79917297,234.65,234.62,2.79774904]
[1733705187150,13.09201736,234.67,234.64,2.79774904]
[1733705187354,13.09201736,234.68,234.64,2.79774904]
[1733705187518,0.79910534,234.67,234.64,2.79774904]
[1733705188024,13.8911227,234.67,234.64,2.79774904]
[1733705188247,13.09201736,234.65,234.64,2.79774904]
[1733705188447,13.09201736,234.65,234.62,2.79774904]
[1733705188633,13.09201736,234.63,234.61,4.3626]
[1733705188949,13.89129417,234.62,234.61,4.3626]
[1733705189151,13.09201736,234.63,234.61,4.3626]
[1733705189653,23.776884,234.62,234.61,4.3626]
[1733705192127,13.09201736,234.64,234.62,2.79774904]
[1733705192455,1.0652,234.69,234.59,7.16034904]
[1733705192456,37.66810709,234.63,234.59,7.16034904]
[1733705192750,13.09201736,234.62,234.59,7.16034904]
[1733705192967,23.776884,234.59,234.55,8.73824904]
[1733705193116,0.6374,234.67,234.55,8.73824904]
[1733705193117,36.86890136,234.57,234.55,8.73824904]
[1733705193824,36.86890136,234.57,234.55,2.79774904]
[1733705193825,24.57632312,234.56,234.55,2.79774904]
[1733705194136,37.66834048,234.56,234.55,2.79774904]
[1733705194729,23.776884,234.55,234.53,2.79774904]
[1733705195662,23.776884,234.55,234.52,4.3626]
[1733705195663,23.776884,234.58,234.55,7.16034904]
[1733705195871,23.776884,234.59,234.55,7.16034904]
[1733705196040,23.776884,234.59,234.57,2.79774904]
[1733705196243,13.09201736,234.63,234.6,4.3626]
[1733705196962,0.79924409,234.62,234.6,4.3626]
[1733705197145,13.09201736,234.63,234.6,4.3626]
[1733705197345,13.09201736,234.64,234.6,4.3626]
[1733705197550,23.776884,234.62,234.6,4.3626]
[1733705197937,24.57612815,234.61,234.6,4.3626]
[1733705198148,23.776884,234.61,234.6,4.3626]
[1733705198335,24.57614351,234.61,234.6,4.3626]
[1733705198672,23.776884,234.61,234.6,4.3626]
[1733705199036,23.776884,234.6,234.58,4.3626]
[1733705199271,23.776884,234.6,234.58,7.16034904]
[1733705199272,23.776884,234.59,234.58,7.16034904]
[1733705199750,23.776884,234.59,234.58,4.3626]
[1733705200237,36.86890136,234.59,234.56,2.79774904]